[Event "Irish Championship 2026"]
[Site "Talbot Hotel Stillorgan, Co.Dublin, IE"]
[Date "2026.08.06"]
[Round "6"]
[White "Woods, Yannick"]
[Black "Andhurthi, Sreeyan"]
[Result "1-0"]
[Board "71"]
[TimeControl "40/5400+30:1800+30"]
[WhiteFideId "2518384"]
[BlackFideId "2523531"]
[WhiteElo "2118"]
[BlackElo "1950"]
[WhiteClock "0:40:17"]
[BlackClock "0:25:37"]
[Variant "Standard"]
[EndDate "2026.08.06"]
[EndTime "16:33:44"]

1. e4 {[%clk 1:30:59]}  c5 {[%clk 1:30:48]} 2. Nf3 {[%clk 1:31:28]}  Nc6 {[%clk 1:31:08]} 3. d4 {[%clk 1:31:55]}  cxd4 {[%clk 1:31:32]}
4. Nxd4 {[%clk 1:32:24]}  g6 {[%clk 1:31:52]} 5. c4 {[%clk 1:32:52]}  Nf6 {[%clk 1:32:11]} 6. Nc3 {[%clk 1:33:18]}  d6 {[%clk 1:32:35]}
7. Be2 {[%clk 1:33:46]}  Nxd4 {[%clk 1:32:58]} 8. Qxd4 {[%clk 1:34:13]}  Bg7 {[%clk 1:33:20]} 9. Be3 {[%clk 1:34:40]}  O-O {[%clk 1:33:39]}
10. Qd3 {[%clk 1:35:09]}  a5 {[%clk 1:33:44]} 11. O-O {[%clk 1:35:33]}  a4 {[%clk 1:34:10]} 12. Bd4 {[%clk 1:36:00]}  Nd7 {[%clk 1:28:12]}
13. Bxg7 {[%clk 1:35:36]}  Kxg7 {[%clk 1:28:32]} 14. Qd4+ {[%clk 1:15:24]}  Kg8 {[%clk 1:24:35]} 15. b4 {[%clk 1:10:52]}  Qb6 {[%clk 1:22:57]}
16. Rfd1 {[%clk 1:04:56]}  Qxd4 {[%clk 1:19:34]} 17. Rxd4 {[%clk 1:05:14]}  Ne5 {[%clk 1:12:12]} 18. a3 {[%clk 0:58:22]}  Be6 {[%clk 1:10:31]}
19. f4 {[%clk 0:52:00]}  Nc6 {[%clk 1:10:40]} 20. Rd2 {[%clk 0:52:10]}  f5 {[%clk 1:01:12]} 21. exf5 {[%clk 0:50:52]}  Rxf5 {[%clk 0:59:04]}
22. g3 {[%clk 0:49:00]}  Kg7 {[%clk 0:53:33]} 23. Re1 {[%clk 0:47:34]}  Rf7 {[%clk 0:48:25]} 24. Bf1 {[%clk 0:46:28]}  Bf5 {[%clk 0:44:43]}
25. Bg2 {[%clk 0:44:35]}  Rc8 {[%clk 0:44:36]} 26. Bd5 {[%clk 0:40:56]}  e6 {[%clk 0:43:06]} 27. Rxe6 {[%clk 0:40:58]}  Bxe6 {[%clk 0:41:56]}
28. Bxe6 {[%clk 0:41:10]}  Re8 {[%clk 0:41:04]} 29. Bxf7 {[%clk 0:41:22]}  Kxf7 {[%clk 0:41:29]} 30. Kf2 {[%clk 0:32:17]}  Rd8 {[%clk 0:40:49]}
31. Rd3 {[%clk 0:31:01]}  Ke6 {[%clk 0:40:44]} 32. Nxa4 {[%clk 0:31:19]}  Rf8 {[%clk 0:40:17]} 33. Kg2 {[%clk 0:25:37]} 1-0

[Event "Irish Championship 2026"]
[Site "Talbot Hotel Stillorgan, Co.Dublin, IE"]
[Date "2026.08.06"]
[Round "6"]
[White "Hayes, Peter J."]
[Black "Mulukutla, Ayaansh"]
[Result "1-0"]
[Board "72"]
[TimeControl "40/5400+30:1800+30"]
[WhiteFideId "2502569"]
[BlackFideId "33391998"]
[WhiteElo "2073"]
[BlackElo "1839"]
[WhiteClock "0:20:38"]
[BlackClock "0:36:59"]
[Variant "Standard"]
[EndDate "2026.08.06"]
[EndTime "18:23:16"]

1. d4 {[%clk 1:30:58]}  d5 {[%clk 1:29:51]} 2. c4 {[%clk 1:31:18]}  c6 {[%clk 1:30:18]} 3. Nf3 {[%clk 1:31:35]}  Nf6 {[%clk 1:30:16]}
4. Nc3 {[%clk 1:31:57]}  e6 {[%clk 1:29:46]} 5. Bg5 {[%clk 1:32:20]}  Be7 {[%clk 1:30:05]} 6. e3 {[%clk 1:32:29]}  Nbd7 {[%clk 1:30:05]}
7. Qc2 {[%clk 1:32:52]}  O-O {[%clk 1:28:59]} 8. O-O-O {[%clk 1:33:15]}  a5 {[%clk 1:23:18]} 9. h4 {[%clk 1:15:55]}  dxc4 {[%clk 1:16:33]}
10. Bxc4 {[%clk 1:15:53]}  b5 {[%clk 1:16:48]} 11. Bd3 {[%clk 1:15:30]}  b4 {[%clk 1:15:01]} 12. Ne4 {[%clk 1:11:50]}  Ba6 {[%clk 1:08:54]}
13. Bxa6 {[%clk 0:48:58]}  Rxa6 {[%clk 1:07:31]} 14. Nc5 {[%clk 0:41:37]}  Nxc5 {[%clk 1:00:09]} 15. dxc5 {[%clk 0:40:39]}  Qa8 {[%clk 0:57:59]}
16. g4 {[%clk 0:36:35]}  a4 {[%clk 0:52:15]} 17. Qc4 {[%clk 0:29:54]}  Ra5 {[%clk 0:50:02]} 18. Kb1 {[%clk 0:27:58]}  Rxc5 {[%clk 0:50:12]}
19. Qf4 {[%clk 0:28:18]}  a3 {[%clk 0:44:29]} 20. b3 {[%clk 0:28:21]}  Nd5 {[%clk 0:33:08]} 21. Rxd5 {[%clk 0:28:06]}  e5 {[%clk 0:21:14]}
22. Rxe5 {[%clk 0:15:17]}  Bd6 {[%clk 0:20:42]} 23. Be7 {[%clk 0:13:53]}  Qa6 {[%clk 0:13:36]} 24. Qd4 {[%clk 0:07:20]}  Bxe5 {[%clk 0:12:06]}
25. Nxe5 {[%clk 0:06:46]}  Rd5 {[%clk 0:11:50]} 26. Qc4 {[%clk 0:07:04]}  Qxc4 {[%clk 0:10:29]} 27. Nxc4 {[%clk 0:07:23]}  Rb8 {[%clk 0:10:00]}
28. Kc2 {[%clk 0:06:49]}  Rd7 {[%clk 0:07:16]} 29. Bd6 {[%clk 0:06:47]}  Rbb7 {[%clk 0:07:22]} 30. Rd1 {[%clk 0:06:09]}  f6 {[%clk 0:06:37]}
31. Rd4 {[%clk 0:05:42]}  Kf7 {[%clk 0:05:25]} 32. Nd2 {[%clk 0:05:14]}  Rb5 {[%clk 0:04:23]} 33. Ne4 {[%clk 0:04:51]}  Rd5 {[%clk 0:02:09]}
34. Bc5 {[%clk 0:02:26]}  Rxd4 {[%clk 0:01:37]} 35. exd4 {[%clk 0:02:39]}  Ke6 {[%clk 0:01:46]} 36. Kd3 {[%clk 0:02:17]}  h6 {[%clk 0:00:56]}
37. Bxb4 {[%clk 0:02:20]}  Ra7 {[%clk 0:01:19]} 38. Bc5 {[%clk 0:02:40]}  Ra8 {[%clk 0:01:26]} 39. Ng3 {[%clk 0:02:25]}  g6 {[%clk 0:01:34]}
40. Ke4 {[%clk 0:02:32]}  h5 {[%clk 0:01:50]} 41. gxh5 {[%clk 0:29:51]}  gxh5 {[%clk 0:31:25]} 42. Nxh5 {[%clk 0:30:02]}  Rh8 {[%clk 0:31:42]}
43. Nf4+ {[%clk 0:30:20]}  Kf7 {[%clk 0:31:29]} 44. h5 {[%clk 0:30:42]}  Re8+ {[%clk 0:31:41]} 45. Kf5 {[%clk 0:30:23]}  Re1 {[%clk 0:32:01]}
46. Bxa3 {[%clk 0:28:24]}  Ra1 {[%clk 0:32:18]} 47. Bc5 {[%clk 0:26:30]}  Rxa2 {[%clk 0:32:36]} 48. d5 {[%clk 0:23:52]}  cxd5 {[%clk 0:31:17]}
49. Nxd5 {[%clk 0:24:11]}  Rb2 {[%clk 0:31:36]} 50. b4 {[%clk 0:24:20]}  Rb3 {[%clk 0:31:53]} 51. f4 {[%clk 0:23:50]}  Rb1 {[%clk 0:31:12]}
52. Nxf6 {[%clk 0:23:57]}  Rh1 {[%clk 0:31:36]} 53. Kg5 {[%clk 0:23:46]}  Rh2 {[%clk 0:31:02]} 54. Ng4 {[%clk 0:20:28]}  Rg2 {[%clk 0:31:11]}
55. h6 {[%clk 0:20:01]}  Rg3 {[%clk 0:31:15]} 56. Bd4 {[%clk 0:19:44]}  Rh3 {[%clk 0:31:18]} 57. b5 {[%clk 0:18:18]}  Ke7 {[%clk 0:31:33]}
58. b6 {[%clk 0:18:35]}  Kd8 {[%clk 0:31:23]} 59. Kg6 {[%clk 0:15:39]}  Rg3 {[%clk 0:31:02]} 60. Bf6+ {[%clk 0:15:50]}  Kd7 {[%clk 0:31:13]}
61. h7 {[%clk 0:15:34]}  Rxg4+ {[%clk 0:31:34]} 62. Bg5 {[%clk 0:15:59]}  Kc6 {[%clk 0:31:53]} 63. h8=Q {[%clk 0:16:22]}  Kxb6 {[%clk 0:32:16]}
64. Qd8+ {[%clk 0:16:42]}  Kc5 {[%clk 0:32:34]} 65. Qc8+ {[%clk 0:17:02]}  Kd4 {[%clk 0:33:00]} 66. Qxg4 {[%clk 0:17:22]}  Kd5 {[%clk 0:33:23]}
67. Qf5+ {[%clk 0:17:44]}  Kd4 {[%clk 0:33:47]} 68. Kf6 {[%clk 0:18:09]}  Kc3 {[%clk 0:34:11]} 69. Qd5 {[%clk 0:18:26]}  Kb4 {[%clk 0:34:34]}
70. Qc6 {[%clk 0:18:49]}  Kb3 {[%clk 0:34:56]} 71. Qc5 {[%clk 0:19:14]}  Ka4 {[%clk 0:35:21]} 72. Qb6 {[%clk 0:19:39]}  Ka3 {[%clk 0:35:46]}
73. Ke5 {[%clk 0:20:04]}  Ka4 {[%clk 0:36:09]} 74. Kd4 {[%clk 0:20:29]}  Ka3 {[%clk 0:36:34]} 75. Kc3 {[%clk 0:20:55]}  Ka2 {[%clk 0:36:59]}
76. Qb2# {[%clk 0:20:38]} 1-0

[Event "Irish Championship 2026"]
[Site "Talbot Hotel Stillorgan, Co.Dublin, IE"]
[Date "2026.08.06"]
[Round "6"]
[White "Rai, Oleksii"]
[Black "Freeman, Gordon"]
[Result "0-1"]
[Board "73"]
[TimeControl "40/5400+30:1800+30"]
[WhiteFideId "2531526"]
[BlackFideId "2501309"]
[WhiteElo "1840"]
[BlackElo "2068"]
[BlackTitle "FM"]
[WhiteClock "0:39:38"]
[BlackClock "0:13:37"]
[Variant "Standard"]
[EndDate "2026.08.06"]
[EndTime "18:02:17"]

1. e4 {[%clk 1:30:57]}  c5 {[%clk 1:30:51]} 2. Nf3 {[%clk 1:31:23]}  d6 {[%clk 1:31:17]} 3. d4 {[%clk 1:31:46]}  cxd4 {[%clk 1:31:41]}
4. Nxd4 {[%clk 1:32:10]}  Nf6 {[%clk 1:32:08]} 5. Nc3 {[%clk 1:32:27]}  a6 {[%clk 1:31:32]} 6. f3 {[%clk 1:32:48]}  e5 {[%clk 1:31:51]}
7. Nb3 {[%clk 1:33:10]}  Be6 {[%clk 1:26:46]} 8. Be3 {[%clk 1:33:26]}  h5 {[%clk 1:26:43]} 9. Qd2 {[%clk 1:33:23]}  Nbd7 {[%clk 1:25:29]}
10. O-O-O {[%clk 1:33:14]}  Be7 {[%clk 1:24:09]} 11. Kb1 {[%clk 1:29:59]}  O-O {[%clk 1:20:07]} 12. h3 {[%clk 1:24:33]}  Nb6 {[%clk 1:13:16]}
13. g4 {[%clk 1:19:51]}  h4 {[%clk 1:04:56]} 14. g5 {[%clk 1:16:25]}  Nh7 {[%clk 0:55:50]} 15. Rg1 {[%clk 1:15:19]}  Nc4 {[%clk 0:53:30]}
16. Bxc4 {[%clk 1:15:35]}  Bxc4 {[%clk 0:53:57]} 17. Qg2 {[%clk 1:05:58]}  Qc8 {[%clk 0:46:03]} 18. Bf2 {[%clk 0:59:29]}  g6 {[%clk 0:37:51]}
19. Bxh4 {[%clk 0:58:05]}  Re8 {[%clk 0:29:36]} 20. Nd5 {[%clk 0:56:58]}  Bxd5 {[%clk 0:29:59]} 21. Rxd5 {[%clk 0:57:16]}  Qe6 {[%clk 0:26:35]}
22. Nd2 {[%clk 0:55:28]}  Rac8 {[%clk 0:26:06]} 23. Nf1 {[%clk 0:55:01]}  Rc6 {[%clk 0:22:39]} 24. Ne3 {[%clk 0:54:54]}  Rec8 {[%clk 0:22:43]}
25. Rd2 {[%clk 0:54:40]}  Rc5 {[%clk 0:13:58]} 26. Nd5 {[%clk 0:54:13]}  Bd8 {[%clk 0:13:11]} 27. Rgd1 {[%clk 0:46:32]}  R8c6 {[%clk 0:13:13]}
28. Re2 {[%clk 0:39:07]}  a5 {[%clk 0:09:37]} 29. Bf2 {[%clk 0:38:51]}  Rb5 {[%clk 0:06:48]} 30. a4 {[%clk 0:38:33]}  Rb4 {[%clk 0:06:43]}
31. Nxb4 {[%clk 0:38:21]}  axb4 {[%clk 0:07:09]} 32. Rd5 {[%clk 0:36:43]}  Nxg5 {[%clk 0:05:52]} 33. Bh4 {[%clk 0:30:09]}  Nxe4 {[%clk 0:03:01]}
34. fxe4 {[%clk 0:27:54]}  Bxh4 {[%clk 0:03:23]} 35. Qg4 {[%clk 0:26:30]}  Qf6 {[%clk 0:02:50]} 36. Rd1 {[%clk 0:24:41]}  Bg5 {[%clk 0:02:01]}
37. b3 {[%clk 0:21:27]}  Rc3 {[%clk 0:01:51]} 38. Rg2 {[%clk 0:21:15]}  Be3 {[%clk 0:01:23]} 39. Qe2 {[%clk 0:18:04]}  Qh4 {[%clk 0:01:03]}
40. Qg4 {[%clk 0:16:48]}  Qf6 {[%clk 0:00:43]} 41. Re2 {[%clk 0:15:54]}  Bd4 {[%clk 0:28:59]} 42. Rh1 {[%clk 0:44:20]}  b5 {[%clk 0:19:36]}
43. Qd7 {[%clk 0:40:25]}  Qf3 {[%clk 0:18:17]} 44. Reh2 {[%clk 0:38:35]}  Rxb3+ {[%clk 0:13:04]} 45. cxb3 {[%clk 0:38:42]}  Qxb3+ {[%clk 0:13:22]}
46. Kc1 {[%clk 0:39:01]}  Be3+ {[%clk 0:13:26]} 47. Rd2 {[%clk 0:39:15]}  Qc3+ {[%clk 0:13:29]} 48. Kb1 {[%clk 0:39:38]}  Bxd2 {[%clk 0:13:37]} 0-1

[Event "Irish Championship 2026"]
[Site "Talbot Hotel Stillorgan, Co.Dublin, IE"]
[Date "2026.08.06"]
[Round "6"]
[White "Conor O'reilly"]
[Black "Ryan, Joshua"]
[Result "1/2-1/2"]
[Board "74"]
[TimeControl "40/5400+30:1800+30"]
[BlackFideId "2516705"]
[WhiteElo "2019"]
[BlackElo "1866"]
[WhiteClock "0:09:08"]
[BlackClock "0:19:46"]
[Variant "Standard"]
[EndDate "2026.08.06"]
[EndTime "17:14:14"]

1. e4 {[%clk 1:30:59]}  e5 {[%clk 1:30:52]} 2. Nf3 {[%clk 1:31:23]}  Nc6 {[%clk 1:31:17]} 3. Bb5 {[%clk 1:31:48]}  a6 {[%clk 1:31:43]}
4. Ba4 {[%clk 1:32:15]}  Nf6 {[%clk 1:32:08]} 5. d3 {[%clk 1:32:40]}  b5 {[%clk 1:32:34]} 6. Bb3 {[%clk 1:33:06]}  Bc5 {[%clk 1:32:59]}
7. a4 {[%clk 1:33:22]}  Rb8 {[%clk 1:33:18]} 8. axb5 {[%clk 1:33:04]}  axb5 {[%clk 1:33:42]} 9. O-O {[%clk 1:33:01]}  d6 {[%clk 1:30:44]}
10. Re1 {[%clk 1:31:13]}  O-O {[%clk 1:21:13]} 11. h3 {[%clk 1:29:27]}  h6 {[%clk 1:19:28]} 12. Nc3 {[%clk 1:28:12]}  Be6 {[%clk 1:04:28]}
13. Bxe6 {[%clk 1:22:05]}  fxe6 {[%clk 1:04:50]} 14. Be3 {[%clk 1:20:56]}  Bxe3 {[%clk 1:02:40]} 15. Rxe3 {[%clk 1:21:11]}  Qe8 {[%clk 0:55:21]}
16. Ne2 {[%clk 1:07:05]}  Nh5 {[%clk 0:53:35]} 17. d4 {[%clk 1:03:48]}  exd4 {[%clk 0:49:12]} 18. Nexd4 {[%clk 1:04:00]}  Nxd4 {[%clk 0:45:47]}
19. Nxd4 {[%clk 1:01:12]}  Nf4 {[%clk 0:45:09]} 20. Ne2 {[%clk 0:44:12]}  Nxe2+ {[%clk 0:29:18]} 21. Qxe2 {[%clk 0:44:09]}  Qd7 {[%clk 0:29:14]}
22. e5 {[%clk 0:43:25]}  d5 {[%clk 0:29:13]} 23. Rea3 {[%clk 0:40:53]}  c5 {[%clk 0:27:09]} 24. Ra7 {[%clk 0:40:55]}  Rb7 {[%clk 0:27:14]}
25. R7a6 {[%clk 0:41:12]}  Qf7 {[%clk 0:26:02]} 26. R1a3 {[%clk 0:32:20]}  Qe7 {[%clk 0:23:09]} 27. Rd6 {[%clk 0:29:59]}  Re8 {[%clk 0:21:56]}
28. Raa6 {[%clk 0:29:42]}  Qf7 {[%clk 0:21:55]} 29. Qg4 {[%clk 0:27:23]}  Rbe7 {[%clk 0:22:16]} 30. Rdc6 {[%clk 0:25:52]}  h5 {[%clk 0:22:30]}
31. Qe2 {[%clk 0:25:59]}  c4 {[%clk 0:22:52]} 32. Ra3 {[%clk 0:24:54]}  Qf4 {[%clk 0:22:07]} 33. c3 {[%clk 0:17:48]}  Rf7 {[%clk 0:19:08]}
34. Raa6 {[%clk 0:14:22]}  Qc1+ {[%clk 0:18:44]} 35. Kh2 {[%clk 0:14:45]}  Qf4+ {[%clk 0:19:00]} 36. Kg1 {[%clk 0:14:54]}  Qc1+ {[%clk 0:19:22]}
37. Kh2 {[%clk 0:10:10]}  Qf4+ {[%clk 0:19:46]} 38. Kg1 {[%clk 0:09:08]} 1/2-1/2

[Event "Irish Championship 2026"]
[Site "Talbot Hotel Stillorgan, Co.Dublin, IE"]
[Date "2026.08.06"]
[Round "6"]
[White "Landmark, Gabriel"]
[Black "John P. A. Kennedy"]
[Result "1-0"]
[Board "75"]
[TimeControl "40/5400+30:1800+30"]
[WhiteFideId "2524848"]
[WhiteElo "1999"]
[BlackElo "2012"]
[WhiteClock "0:11:57"]
[BlackClock "0:00:33"]
[Variant "Standard"]
[EndDate "2026.08.06"]
[EndTime "17:33:46"]

1. e4 {[%clk 1:30:58]}  c5 {[%clk 1:30:57]} 2. Nf3 {[%clk 1:31:25]}  d6 {[%clk 1:31:19]} 3. d4 {[%clk 1:31:50]}  cxd4 {[%clk 1:31:44]}
4. Nxd4 {[%clk 1:32:15]}  Nf6 {[%clk 1:32:12]} 5. Nc3 {[%clk 1:32:39]}  a6 {[%clk 1:32:39]} 6. f3 {[%clk 1:33:04]}  e5 {[%clk 1:32:29]}
7. Nb3 {[%clk 1:33:29]}  Be6 {[%clk 1:32:46]} 8. Be3 {[%clk 1:33:52]}  Be7 {[%clk 1:32:34]} 9. Qd2 {[%clk 1:34:16]}  O-O {[%clk 1:32:44]}
10. O-O-O {[%clk 1:34:41]}  Nbd7 {[%clk 1:28:49]} 11. g4 {[%clk 1:33:47]}  Rc8 {[%clk 1:28:25]} 12. Kb1 {[%clk 1:33:55]}  b5 {[%clk 1:27:15]}
13. h4 {[%clk 1:22:44]}  Nb6 {[%clk 1:24:35]} 14. Bxb6 {[%clk 1:19:36]}  Qxb6 {[%clk 1:24:58]} 15. Nd5 {[%clk 1:19:43]}  Bxd5 {[%clk 1:22:06]}
16. exd5 {[%clk 1:20:08]}  Bd8 {[%clk 1:16:28]} 17. h5 {[%clk 1:11:00]}  a5 {[%clk 0:58:06]} 18. g5 {[%clk 1:08:38]}  a4 {[%clk 0:53:01]}
19. Nc1 {[%clk 0:55:34]}  Ne8 {[%clk 0:47:40]} 20. g6 {[%clk 0:54:04]}  Rc7 {[%clk 0:35:13]} 21. Bh3 {[%clk 0:51:46]}  Kh8 {[%clk 0:26:26]}
22. gxh7 {[%clk 0:49:17]}  a3 {[%clk 0:21:14]} 23. b3 {[%clk 0:38:50]}  Bf6 {[%clk 0:19:03]} 24. Qb4 {[%clk 0:37:10]}  Ra7 {[%clk 0:11:43]}
25. Qe4 {[%clk 0:37:15]}  Nc7 {[%clk 0:11:42]} 26. Nd3 {[%clk 0:35:16]}  Ra4 {[%clk 0:08:53]} 27. bxa4 {[%clk 0:27:06]}  Nxd5 {[%clk 0:06:48]}
28. Qxd5 {[%clk 0:25:52]}  bxa4+ {[%clk 0:07:13]} 29. Kc1 {[%clk 0:25:59]}  Qe3+ {[%clk 0:05:12]} 30. Rd2 {[%clk 0:25:25]}  Bg5 {[%clk 0:03:51]}
31. f4 {[%clk 0:23:58]}  Bf6 {[%clk 0:03:00]} 32. Bd7 {[%clk 0:17:12]}  e4 {[%clk 0:02:18]} 33. Re1 {[%clk 0:15:26]}  Bb2+ {[%clk 0:01:46]}
34. Kd1 {[%clk 0:15:11]}  Qa7 {[%clk 0:01:03]} 35. Qxd6 {[%clk 0:11:48]}  Rd8 {[%clk 0:01:28]} 36. Ne5 {[%clk 0:11:01]}  Bxe5 {[%clk 0:00:53]}
37. Qxe5 {[%clk 0:11:03]}  Qb7 {[%clk 0:00:42]} 38. h6 {[%clk 0:11:04]}  f6 {[%clk 0:01:06]} 39. hxg7+ {[%clk 0:11:27]}  Kxh7 {[%clk 0:01:20]}
40. Rh1+ {[%clk 0:11:36]}  Kg8 {[%clk 0:00:33]} 41. Qe6+ {[%clk 0:11:57]} 1-0

[Event "Irish Championship 2026"]
[Site "Talbot Hotel Stillorgan, Co.Dublin, IE"]
[Date "2026.08.06"]
[Round "6"]
[White "Stokes, Stephen"]
[Black "O'Connell, Gerard"]
[Result "0-1"]
[Board "76"]
[TimeControl "40/5400+30:1800+30"]
[WhiteFideId "2503530"]
[BlackFideId "2500493"]
[WhiteElo "1885"]
[BlackElo "1996"]
[WhiteClock "1:12:04"]
[BlackClock "0:40:55"]
[Variant "Standard"]
[EndDate "2026.08.06"]
[EndTime "15:41:35"]

1. d4 {[%clk 1:29:29]}  Nf6 {[%clk 1:30:50]} 2. c4 {[%clk 1:29:42]}  e6 {[%clk 1:30:29]} 3. Nf3 {[%clk 1:29:51]}  d5 {[%clk 1:30:46]}
4. g3 {[%clk 1:29:52]}  Be7 {[%clk 1:31:04]} 5. Bg2 {[%clk 1:30:13]}  O-O {[%clk 1:31:16]} 6. O-O {[%clk 1:30:25]}  dxc4 {[%clk 1:30:21]}
7. Ne5 {[%clk 1:30:30]}  Nc6 {[%clk 1:29:44]} 8. Bxc6 {[%clk 1:30:50]}  bxc6 {[%clk 1:30:08]} 9. Nxc6 {[%clk 1:31:13]}  Qe8 {[%clk 1:27:43]}
10. Nxe7+ {[%clk 1:31:25]}  Qxe7 {[%clk 1:28:09]} 11. Qc2 {[%clk 1:31:29]}  c5 {[%clk 1:25:01]} 12. dxc5 {[%clk 1:30:20]}  Qxc5 {[%clk 1:24:57]}
13. Be3 {[%clk 1:30:01]}  Qc6 {[%clk 1:24:11]} 14. f3 {[%clk 1:26:46]}  e5 {[%clk 1:18:56]} 15. Nd2 {[%clk 1:25:50]}  Ba6 {[%clk 1:14:47]}
16. Rac1 {[%clk 1:21:59]}  Rfc8 {[%clk 1:10:51]} 17. Bf2 {[%clk 1:19:41]}  Qe6 {[%clk 0:49:52]} 18. Ne4 {[%clk 1:16:22]}  Nxe4 {[%clk 0:48:52]}
19. Qxe4 {[%clk 1:16:45]}  Rab8 {[%clk 0:48:52]} 20. Bxa7 {[%clk 1:14:14]}  Rxb2 {[%clk 0:44:21]} 21. Rc2 {[%clk 1:13:52]}  f5 {[%clk 0:43:43]}
22. Rxb2 {[%clk 1:12:14]}  fxe4 {[%clk 0:44:02]} 23. Rb6 {[%clk 1:12:36]}  Rc6 {[%clk 0:42:51]} 24. Rb8+ {[%clk 1:12:29]}  Bc8 {[%clk 0:41:44]}
25. fxe4 {[%clk 1:12:18]}  c3 {[%clk 0:41:51]} 26. Be3 {[%clk 1:12:31]}  h6 {[%clk 0:41:39]} 27. a4 {[%clk 1:12:16]}  Qc4 {[%clk 0:40:51]}
28. Bc1 {[%clk 1:12:04]}  Qxa4 {[%clk 0:40:55]} 0-1

[Event "Irish Championship 2026"]
[Site "Talbot Hotel Stillorgan, Co.Dublin, IE"]
[Date "2026.08.06"]
[Round "6"]
[White "Nichenametla V, Advaith"]
[Black "Fitzgerald, Niall"]
[Result "0-1"]
[Board "77"]
[TimeControl "40/5400+30:1800+30"]
[WhiteFideId "2516896"]
[BlackFideId "2511185"]
[WhiteElo "1943"]
[BlackElo "1894"]
[WhiteClock "0:00:54"]
[BlackClock "0:00:35"]
[Variant "Standard"]
[EndDate "2026.08.06"]
[EndTime "17:41:54"]

1. d4 {[%clk 1:30:51]}  d5 {[%clk 1:30:30]} 2. Nf3 {[%clk 1:31:17]}  Nf6 {[%clk 1:30:52]} 3. e3 {[%clk 1:31:41]}  e6 {[%clk 1:30:29]}
4. Bd3 {[%clk 1:32:07]}  Be7 {[%clk 1:29:32]} 5. O-O {[%clk 1:31:44]}  O-O {[%clk 1:29:23]} 6. b3 {[%clk 1:32:06]}  c5 {[%clk 1:23:15]}
7. Bb2 {[%clk 1:31:18]}  Nbd7 {[%clk 1:02:29]} 8. Nbd2 {[%clk 1:31:31]}  b6 {[%clk 1:02:31]} 9. Ne5 {[%clk 1:28:55]}  Bb7 {[%clk 0:51:24]}
10. f4 {[%clk 1:22:38]}  Ne4 {[%clk 0:41:22]} 11. Rf3 {[%clk 0:58:40]}  Rc8 {[%clk 0:24:54]} 12. Rh3 {[%clk 0:50:07]}  Ndf6 {[%clk 0:24:13]}
13. Ndf3 {[%clk 0:43:41]}  cxd4 {[%clk 0:10:17]} 14. exd4 {[%clk 0:41:11]}  Rc7 {[%clk 0:09:18]} 15. Qe1 {[%clk 0:33:49]}  g6 {[%clk 0:03:09]}
16. Qe2 {[%clk 0:25:10]}  Nh5 {[%clk 0:01:04]} 17. Bc1 {[%clk 0:21:34]}  Qc8 {[%clk 0:00:34]} 18. g4 {[%clk 0:14:19]}  Ng7 {[%clk 0:00:49]}
19. Qe1 {[%clk 0:10:54]}  f6 {[%clk 0:00:36]} 20. Qh4 {[%clk 0:11:11]}  fxe5 {[%clk 0:00:40]} 21. Qxh7+ {[%clk 0:11:34]}  Kf7 {[%clk 0:01:07]}
22. Nxe5+ {[%clk 0:11:55]}  Ke8 {[%clk 0:00:59]} 23. Qxg7 {[%clk 0:11:51]}  Bf6 {[%clk 0:00:45]} 24. Qxg6+ {[%clk 0:11:13]}  Kd8 {[%clk 0:01:05]}
25. Ba3 {[%clk 0:11:09]}  Rg7 {[%clk 0:01:06]} 26. Qh5 {[%clk 0:07:33]}  Qc3 {[%clk 0:01:26]} 27. Rf1 {[%clk 0:02:43]}  Qxd4+ {[%clk 0:01:40]}
28. Kg2 {[%clk 0:03:11]}  Rfg8 {[%clk 0:01:28]} 29. Nf7+ {[%clk 0:02:37]}  Kc7 {[%clk 0:00:40]} 30. Nh6 {[%clk 0:01:32]}  Rh8 {[%clk 0:00:39]}
31. Rff3 {[%clk 0:01:05]}  Nd2 {[%clk 0:00:41]} 32. Re3 {[%clk 0:00:32]}  Qxf4 {[%clk 0:00:51]} 33. Rxe6 {[%clk 0:00:42]}  d4+ {[%clk 0:00:39]}
34. Kg1 {[%clk 0:00:54]}  Rxh6 {[%clk 0:00:35]} 0-1

[Event "Irish Championship 2026"]
[Site "Talbot Hotel Stillorgan, Co.Dublin, IE"]
[Date "2026.08.06"]
[Round "6"]
[White "Healy, John"]
[Black "Fox, Anthony"]
[Result "1-0"]
[Board "78"]
[TimeControl "40/5400+30:1800+30"]
[WhiteFideId "2500965"]
[BlackFideId "2500736"]
[WhiteElo "1928"]
[BlackElo "1876"]
[WhiteClock "0:33:24"]
[BlackClock "0:03:46"]
[Variant "Standard"]
[EndDate "2026.08.06"]
[EndTime "18:56:37"]

1. e4 {[%clk 1:30:16]}  e5 {[%clk 1:30:53]} 2. Nf3 {[%clk 1:30:39]}  Nc6 {[%clk 1:31:15]} 3. d4 {[%clk 1:31:02]}  exd4 {[%clk 1:31:34]}
4. Nxd4 {[%clk 1:31:26]}  Nf6 {[%clk 1:31:49]} 5. Nxc6 {[%clk 1:31:17]}  bxc6 {[%clk 1:32:11]} 6. Qe2 {[%clk 1:31:40]}  d6 {[%clk 1:21:38]}
7. Nc3 {[%clk 1:32:02]}  Be7 {[%clk 1:21:30]} 8. b3 {[%clk 1:30:05]}  O-O {[%clk 1:20:09]} 9. Bb2 {[%clk 1:26:20]}  Be6 {[%clk 1:16:59]}
10. O-O-O {[%clk 1:26:05]}  Qc8 {[%clk 1:13:55]} 11. h3 {[%clk 1:21:58]}  Re8 {[%clk 1:09:39]} 12. f4 {[%clk 1:21:03]}  Bf8 {[%clk 1:02:14]}
13. g4 {[%clk 1:20:47]}  Nxe4 {[%clk 0:37:30]} 14. Nxe4 {[%clk 1:17:19]}  Bd5 {[%clk 0:36:03]} 15. Bg2 {[%clk 1:17:41]}  Bxe4 {[%clk 0:36:09]}
16. Bxe4 {[%clk 1:18:03]}  d5 {[%clk 0:36:33]} 17. Bxh7+ {[%clk 1:18:11]}  Kxh7 {[%clk 0:36:20]} 18. Qd3+ {[%clk 1:18:35]}  Kg8 {[%clk 0:36:20]}
19. f5 {[%clk 1:08:37]}  Qd7 {[%clk 0:31:33]} 20. g5 {[%clk 1:05:21]}  Qd6 {[%clk 0:27:43]} 21. Rdf1 {[%clk 0:58:55]}  Re4 {[%clk 0:26:23]}
22. h4 {[%clk 0:57:13]}  Rae8 {[%clk 0:26:41]} 23. Qf3 {[%clk 0:57:28]}  d4 {[%clk 0:21:29]} 24. Qh5 {[%clk 0:44:15]}  g6 {[%clk 0:18:50]}
25. fxg6 {[%clk 0:44:40]}  fxg6 {[%clk 0:13:04]} 26. Qf3 {[%clk 0:44:24]}  Qe6 {[%clk 0:10:44]} 27. a3 {[%clk 0:43:32]}  Bg7 {[%clk 0:09:47]}
28. Kb1 {[%clk 0:40:43]}  Qd5 {[%clk 0:07:31]} 29. Ka2 {[%clk 0:40:52]}  Rf8 {[%clk 0:06:52]} 30. Qh3 {[%clk 0:32:06]}  Rxf1 {[%clk 0:07:03]}
31. Rxf1 {[%clk 0:32:22]}  Qe6 {[%clk 0:07:15]} 32. Qf3 {[%clk 0:32:34]}  a5 {[%clk 0:06:34]} 33. h5 {[%clk 0:32:26]}  gxh5 {[%clk 0:03:29]}
34. Qxh5 {[%clk 0:32:50]}  a4 {[%clk 0:03:23]} 35. g6 {[%clk 0:32:59]}  axb3+ {[%clk 0:03:46]} 36. cxb3 {[%clk 0:33:24]} 1-0